Cogmind - Beta 16 @@@ ROGUE MODE // 2025.12.03 @ 01:38:40 Player: AngelSpirit Result: Destroyed by LQ-EBI(R) with Subdweller Beam Cannon Performance ------------- Evolutions (0) 0 Regions Visited (2) 400 Robots Destroyed (18) 90 Value Destroyed (570) 570 Prototype IDs (0) 0 Alien Tech Used (0) 0 Bonus (0) 0 TOTAL SCORE: 1060 Bonus ------- None Cogmind --------- Core Integrity 0/250 Matter 120/300 Energy 100/100 System Corruption 0% Temperature Cool (9) Movement Rolling (95) Ox1 Location -10/Subcaves Parts ------- > --- POWER (1) -------- (None) > --- PROPULSION (2) --- Wheel > --- UTILITY (2) ------ Medium Storage Unit > --- WEAPON (2) ------- Grenade Launcher > --- INVENTORY (10) --- Ion Engine Wheel Large Storage Unit Large Matter Pod (53) Signal Interpreter Signal Interpreter Seismic Detector Peak State ------------ > --- POWER ------------ Ion Engine > --- PROPULSION ------- Wheel Compact Wheel > --- UTILITY ---------- Medium Storage Unit Seismic Detector > --- WEAPON ----------- Beam Cannon Subdweller Machine Gun > --- INVENTORY -------- Ion Engine Wheel Wheel Large Storage Unit Large Matter Pod Signal Interpreter Signal Interpreter Light Armor Plating Small Laser Grenade Launcher [Rating: 9] Favorites ----------- Power Ion Engine Engine Ion Engine Propulsion Wheel Wheel Wheel Utility Light Armor Plating Device Seismic Detector Storage Medium Storage Unit Protection Light Armor Plating Weapon Small Laser Energy Gun Small Laser Energy Cannon Beam Cannon Ballistic Gun Subdweller Machine Gun Launcher Grenade Launcher Build | -11 -10 -10 ------- Run | Yrd Mat Sub Slots Evolved . | . . . Power . | . . . Propulsion . | . . . Utility . | . . . Weapon . | . . . Parts Attached 20 | 6 9 5 Power 1 | 1 . . Engine 1 | 1 . . Core . | . . . Reactor . | . . . Propulsion 4 | 2 1 1 Treads . | . . . Leg . | . . . Wheel 4 | 2 1 1 Hover . | . . . Flight . | . . . Utility 5 | 1 3 1 Device 1 | . . 1 Storage 2 | 1 1 . Processor . | . . . Hackware . | . . . Protection 2 | . 2 . Artifact . | . . . Weapon 10 | 2 5 3 Energy Gun 4 | 2 2 . Energy Cannon 1 | . 1 . Ballistic Gun 2 | . . 2 Ballistic Cannon . | . . . Launcher 3 | . 2 1 Special Weapon . | . . . Impact Weapon . | . . . Slashing Weapon . | . . . Piercing Weapon . | . . . Special Melee Weapon . | . . . Unidentified Prototypes . | . . . Parts Lost 8 | . . 8 Power 1 | . . 1 Propulsion 2 | . . 2 Utility 1 | . . 1 Weapon 4 | . . 4 Highest Loss Streak 5 | . . 5 To Critical Strikes . | . . . Average Backups 6 | . 4 9 Power . | . . 1 Propulsion 1 | . 1 1 Utility 3 | . 2 5 Weapon 1 | . 1 1 Tool/Special . | . . . Unused Backups 6 | . 1 5 Power 1 | . . 1 Propulsion . | . . . Utility 5 | . 1 4 Weapon . | . . . Tool/Special . | . . . Average Slot Usage (%) 95 | . 97 92 Engine 11 | . 14 9 Wheel 27 | . 28 27 Device 3 | . . 8 Storage 14 | . 14 14 Protection 9 | . 12 4 Energy Gun 16 | . 24 6 Energy Cannon 4 | . 2 6 Ballistic Gun 2 | . . 6 Launcher 3 | . . 6 Peak Build Rating 9 | 6 8 9 Average Rating 7 | 4 7 7 On Entrance 4 | . 6 8 Avg Prop Armor Cover (%) . | . . . Naked Turns . | . . . Heaviest Build 23 | 13 22 23 Greatest Support 26 | 20 26 26 Greatest Overweight (x) 1 | . 1 1 Average Overweight (x) . | . . . Largest Inventory Capacity 10 | 8 10 10 Average Capacity 9 | 7 8 10 Most Carried 10 | . 10 10 Average Carried 6 | . 4 9 Final Capacity 10 | 8 10 10 Final Carried 10 | . 10 7 Class Distribution -------------------- 100% | Mutant Dominant Class ---------------- Mutant | -10/Materials Mutant | -10/Subcaves Resources | -11 -10 -10 ----------- Run | Yrd Mat Sub Matter Collected 566 | 181 271 114 Remotely . | . . . Salvage Created 581 | . 429 152 Parts 29 | . 19 10 Haulers Intercepted . | . . . Recyclers Shooed 1 | . 1 . Parts Field Recycled . | . . . Retrieved Matter . | . . . Parts Self-Destructed 5 | . . 5 Prevented . | . . . Parts Restored . | . . . Kills | -11 -10 -10 ------- Run | Yrd Mat Sub Combat Hostiles Destroyed 13 | . 8 5 Guns 5 | . 4 1 Cannons 1 | . . 1 AOE 7 | . 4 3 Classes Destroyed 5 | . 4 1 Builder 1 | . 1 . Recycler 1 | . 1 . Watcher 3 | . 3 . Grunt 8 | . 8 . Subdweller 5 | . . 5 Best Kill Streak 5 | . 5 2 Combat Bots Only 2 | . 2 2 Max Kills in Single Turn 2 | . 2 1 Gunslinging . | . . . Exploded 1 | . 1 1 Melee . | . . . Uniques/NPCs Destroyed . | . . . Combat | -11 -10 -10 -------- Run | Yrd Mat Sub Hostile Shots Fired 84 | . 44 40 Missed 26 | . 13 13 Hits 58 | . 31 27 Projectile 58 | . 31 27 Critical Strikes 2 | . 1 1 Damage Taken 1079 | . 398 681 Core 271 | . 164 107 Absorbed by Shields . | . . . Core Remaining (%) 100 | 100 . . Volleys Fired 82 | . 49 33 Largest 2 | . 2 2 Hottest 100 | . 90 100 Shots Fired 141 | . 89 52 Gun 108 | . 82 26 Cannon 11 | . . 11 Launcher 22 | . 7 15 Special . | . . . Kinetic 10 | . . 10 Thermal 109 | . 82 27 Explosive 22 | . 7 15 Electromagnetic . | . . . Robot Hit Streak 11 | . 6 11 Robot Miss Streak 7 | . 7 2 Penetration Max . | . . . Secondary Targets . | . . . Shots Hit Robots 81 | . 48 33 Core Hits 43 | . 32 11 Critical Kills . | . . . Critical Parts Destroyed . | . . . Critical Strikes 5 | . 5 . Burn 5 | . 5 . Melee Attacks . | . . . Impact . | . . . Slashing . | . . . Piercing . | . . . Sneak Attacks . | . . . Combat Hostiles . | . . . Follow-up Attacks . | . . . Damage Inflicted 1930 | . 1022 908 Guns 703 | . 524 179 Cannons 120 | . . 120 Explosions 1107 | . 498 609 Melee . | . . . Ramming . | . . . Kinetic 73 | . . 73 Thermal 750 | . 524 226 Explosive 1107 | . 498 609 Electromagnetic . | . . . Impact . | . . . Slashing . | . . . Piercing . | . . . Highest Corruption . | . . . Average Corruption . | . . . Corruption Purged . | . . . Corruption Blocked . | . . . Overload Shots . | . . . Overflow Damage . | . . . Projectiles . | . . . Explosions . | . . . Melee . | . . . Knockbacks . | . . . Impact . | . . . Kinetic . | . . . Secondary . | . . . Self-Inflicted Damage 17 | . 3 14 Shots 3 | . 1 2 Rammed . | . . . Targets Rammed . | . . . Kicked . | . . . Crushed . | . . . Highest Temperature 452 | . 452 . Average Temperature 129 | . 129 . Received Heat Transfer 393 | . 249 144 Effects 5 | . 5 . Shutdowns 1 | . 1 . Interference 2 | . 2 . Matter Decay 1 | . 1 . Damage (minor) 1 | . 1 . Siege Activations . | . . . Martial Activations . | . . . Shielding Activations . | . . . Robots Disrupted . | . . . Combat Hostiles . | . . . Robots Corrupted . | . . . Combat Hostiles . | . . . Parts Fried . | . . . Impact Corruptions . | . . . Robots Melted . | . . . Combat Hostiles . | . . . Parts Melted 1 | . 1 . Heat Transferred 2253 | . 1769 484 Parts Sabotaged . | . . . Parts Stolen . | . . . Parts Stripped . | . . . Power Chain Reactions . | . . . Alert | -11 -10 -10 ------- Run | Yrd Mat Sub Maximum Alert Level . | . . . Low Security (%) 100 | 100 100 . Level 1 . | . . . Level 2 . | . . . Level 3 . | . . . Level 4 . | . . . Level 5 . | . . . High Security . | . . . Max Security . | . . . Peak Influence 133 | . 133 . Initial . | . . . Average 30 | . 31 . Influence Increases 307 | . 307 . Destroy 0b10 Robot/C 160 | . 160 . Destroy 0b10 Robot/NC 25 | . 25 . Destroy Leader 36 | . 36 . Successful Hack 26 | . 26 . Destroy Structure 30 | . 30 . Lose Combat Pursuer 30 | . 30 . Influence Decreases 307 | . 238 69 Entered New Map 34 | . . 34 Time Decay 273 | . 238 35 Squads Dispatched . | . . . Investigation . | . . . Extermination . | . . . Reinforcement . | . . . Assault . | . . . Garrison . | . . . Intercept . | . . . Searches Triggered . | . . . Construction Impeded . | . . . Haulers Reinforced . | . . . Active Scanning Responses . | . . . Cargo Convoy Interrupts . | . . . Stealth | -11 -10 -10 --------- Run | Yrd Mat Sub Distress Signals 3 | . 3 . Communications Jammed . | . . . Distress Signals . | . . . Times Spotted 26 | . 20 6 Peak Tracking Total 3 | . 3 2 Tactical Retreats 2 | . 2 . Traps | -11 -10 -10 ------- Run | Yrd Mat Sub Traps Triggered . | . . . Indirectly . | . . . Trap Hack Attempts . | . . . Triggered . | . . . Disarmed . | . . . Reprogrammed 3 | . 3 . Reused . | . . . Traps Extracted . | . . . Installed . | . . . Triggered . | . . . Machines | -11 -10 -10 ---------- Run | Yrd Mat Sub Machines Disabled . | . . . Max in Single Turn . | . . . Machines Repaired . | . . . Machines Dismantled . | . . . Machines Sabotaged . | . . . Overloaded Fab Kills . | . . . Hacking | -11 -10 -10 --------- Run | Yrd Mat Sub Machines Accessed 10 | . 9 1 Terminals 8 | . 8 . Fabricators . | . . . Repair Stations . | . . . Recycling Units 1 | . 1 . Scanalyzers . | . . . Garrison Access . | . . . Total Hacks 31 | . 26 5 Successful 20 | . 15 5 Failed 11 | . 11 . Catastrophic 1 | . 1 . Database Lockouts . | . . . Manual 11 | . 11 . Terminals 25 | . 25 . Fabricators . | . . . Repair Stations . | . . . Recycling Units 1 | . 1 . Scanalyzers . | . . . Garrison Access . | . . . Terminal Hacks 15 | . 10 5 Record 5 | . . 5 Robot Analysis 1 | . 1 . Branch Access Points 1 | . 1 . Terminal Index 1 | . 1 . Locate Traps 1 | . 1 . Reprogram Traps 1 | . 1 . Dispatch Records 1 | . 1 . Security Status 1 | . 1 . Hauler Manifests 1 | . 1 . Registered Components 1 | . 1 . Registered Prototypes 1 | . 1 . Fabricator Hacks . | . . . Repair Station Hacks . | . . . Recycling Unit Hacks 1 | . 1 . Retrieve Components 1 | . 1 . Scanalyzer . | . . . Garrison Access Hacks . | . . . Unauthorized Hacks 4 | . 4 . Terminals 4 | . 4 . Botnet 4 | . 4 . Fabricators . | . . . Repair Stations . | . . . Recycling Units . | . . . Scanalyzers . | . . . Garrison Access . | . . . Data Cores Recovered . | . . . Used . | . . . Hacking Detections 8 | . 8 . Full Trace Events . | . . . Feedback Events . | . . . Feedback Blocked . | . . . Robot Schematics Acquired . | . . . Robots Built . | . . . Authchips . | . . . Time . | . . . Total Robot Build Rating . | . . . Part Schematics Acquired . | . . . Parts Built . | . . . Authchips . | . . . Time . | . . . Total Part Build Rating . | . . . Part Studies Acquired . | . . . Parts Repaired . | . . . Time . | . . . Parts Recycled . | . . . Recycled Matter . | . . . Retrieved Matter . | . . . Retrieved Components 9 | . 9 . Parts Scanalyzed . | . . . Part Schematics Acquired . | . . . Parts Damaged . | . . . Bothacking | -11 -10 -10 ------------ Run | Yrd Mat Sub Used RIF Installer . | . . . Robots Hacked . | . . . Non-combat . | . . . Combat . | . . . Robot Hacks Applied . | . . . Relay Couplers Released . | . . . Fabnet Peak Effective % . | . . . Robots Rewired . | . . . Allies Hacked . | . . . Hacks Repelled . | . . . Allies | -11 -10 -10 -------- Run | Yrd Mat Sub Total Allies . | . . . Largest Group . | . . . Highest-Rated Group . | . . . Highest-Rated Ally . | . . . Total Orders . | . . . Ally Attacks . | . . . Total Damage . | . . . Kills . | . . . Allies Corrupted . | . . . Allies Melted . | . . . Intel | -11 -10 -10 ------- Run | Yrd Mat Sub Active Infowar (turns) 451 | . . 451 Seismic 451 | . . 451 Robot Analysis Total 1 | . 1 . Derelict Logs Recovered 1 | . . 1 Drone Launches . | . . . Drone Recoveries . | . . . Exploration | -11 -10 -10 ------------- Run | Yrd Mat Sub Turns Passed 1616 | 35 876 705 Spaces Moved 1339 | 33 657 649 Core 2 | 2 . . Treads . | . . . Legs . | . . . Wheels 1337 | 31 657 649 Hover . | . . . Flight . | . . . Fastest Speed 50 | 50 80 90 Average Speed 86 | 78 82 90 Slowest Speed 115 | 80 95 115 Overloaded Moves . | . . . Propulsion Burnouts . | . . . Robots Hopped . | . . . Potential Cave-ins . | . . . Cave-ins Triggered . | . . . Exploration Rate (%) 44 | 4 97 31 Regions Visited 2 Branch Regions 1 Pre-discovered Areas 2 | . . 2 Known Exits Taken . | . . . Unknown Exits Taken 2 | 1 1 . Scrap Searched . | . . . Spaces Dug . | . . . Terrain Destroyed 79 | . 32 47 Melee . | . . . Projectile . | . . . AOE 79 | . 32 47 Terrain Rammed . | . . . Walls Destroyed . | . . . Machines Disabled . | . . . Actions | -11 -10 -10 --------- Run | Yrd Mat Sub Total 1653 | 38 900 715 Wait 187 | . 164 23 Move 1337 | 32 656 649 Hop . | . . . Pick Up 12 | . 12 . Fast Attach 12 | 6 3 3 Attach 3 | . . 3 Detach 1 | . 1 . Swap 9 | . 7 2 Drop 10 | . 8 2 Fire 82 | . 49 33 Melee . | . . . Ram . | . . . Kick . | . . . Crush . | . . . Escape Stasis . | . . . Rewire . | . . . Trap . | . . . Miscellaneous . | . . . Route ------- -11/Scrapyard -10/Materials (discovered 5 exits: [*Mat x3] / *Min / *Sub) -10/Subcaves History --------- Turn | Location | Event 5 | -11/Scrapyard | Discovered new exit (range 15) 36 | -11/Scrapyard | Entered Materials 79 | -10/Materials | Identified exit to Mines 304 | -10/Materials | Build established: Mutant 466 | -10/Materials | Discovered new exit (range 11) 520 | -10/Materials | Discovered new exit (range 15) 592 | -10/Materials | Discovered new exit (range 5) 654 | -10/Materials | Core integrity fell below 50% 830 | -10/Materials | Discovered new exit (range 11) 912 | -10/Materials | Entered Subcaves 989 | -10/Subcaves | Visited Clippyterm 991 | -10/Subcaves | Learned location of Section 7 (-2) 991 | -10/Subcaves | Learned Factory fabricator intel 1380 | -10/Subcaves | Core integrity fell below 20% 1412 | -10/Subcaves | Lost 3 parts (1p1n1w) 1617 | -10/Subcaves | Destroyed by LQ-EBI(R) with Subdweller Beam Cannon Last Messages --------------- 01381_ Sub. Machine Gun destroyed. 01383_ RZ-HFF(R) destroyed. 01392_ Acquired 20 matter. 01394_ Acquired Sub. Machine Gun. 01401_ The unstable cave ceiling collapses. 01488_ Subatomizers dissect the Sub. Monowheel. 01582_ Grenade Launcher destroyed. 01588_ Lgt. Armor Plating destroyed. 01591_ Com. Wheel destroyed. 01591_ Sub. Machine Gun destroyed. 01596_ Subatomizers dissect the Beam Cannon, destroying it. 01599_ The unstable cave ceiling collapses. 01599_ Sml. Laser destroyed. 01605_ 4L-2VN(R) destroyed. 01606_ LQ-EBI(R): "HIDIE!" 01609_ Subatomizers dissect the Sml. Laser. 01611_ The unstable cave ceiling collapses. 01614_ LQ-EBI(R) affixes Scrap Shield Fragment to Scrap Shield. Map ----- +----------------------------------------------------+ | ###?????????# ##???# #???? | | ##???????????# #?### ##???? | | ##???????##???## #?# #????? | | ####????# #????# #?# #????? | | ##### #????# #"# #?# #????? | | !&& ##???# ### ###?# #????? | | & & #???# #??###### #????? | | ########= #??## ##?### ##????? | | ##??##### #?## ### #?????? | | ##?### ## #?# ## #?????? | | #### #?# #### ##???? | | ## ##?## ### ### ##?? #???? | | ## #???## #??# ### ## #???? | | ##### ### #????##???# #???? | | ????## #?# ##???###???## # "#???# | | ?????## #### #???## ###### ### "##???# | | ?????## ##?# ##???# # ### "#???# | | ###### #?## #####?# [ """" ## """#???# | | # #?# ## ### """"""##""""##### | | # #?# # ##### ##"""#""""#" | | ## ### ### ##??# #########""" " | | ?# ####### #?#### ##???# " # | | ?# ### ###?## ## ##### ##### | | ?# ### ### ""## "##?## | | ?# ##?## " ""#?## | | ?# ##?# @ R ## "### | | # #### #### #### ### ### | | ???## #?#######??# #???######" | | ?????# ##??????????# ## #????????#" | | ?????# ####???????????###?? ##????????#" | | ??????####????????????????????######?????????#"" | | ??????????????????????????????????????????????#"" | | ??????????????????????????????????????????????# | | ????????????????????????????????????????????### | | ????????????????????????????????????????????# | | ????????????????????????????????????????????# | | ????????????????????????????????????????????# | | ???????????????????????????????????????????## | | ???????????????????????????????????????????# | | ???????????????????????????????????????????# | | ???????????????????????????????????????????# # | | ???????????????????????????????????????????## # | | ????????????????????????????????????????????###### | | ?????????????????????????????????????????????????? | | ?????????????????????????????????????????????????? | | ?????????????????????????????????????????????????? | | ?????????????????????????????????????????????????? | | ?????????????????????????????????????????????????? | | ?????????????????????????????????????????????????? | | ?????????????????????????????????????????????????? | +----------------------------------------------------+ Best States ------------- Heat Dissipation 25 Energy Generation 10 Energy Capacity 250 Matter Stores 300 Matter Capacity 300 Sight Range 16 Terrain Scan Density 10 Armor Coverage 150 Evasion (%) 44 Item Schematics ----------------- None Robot Schematics ------------------ None Fabricated ------------ Nothing Repaired ---------- Nothing Studied --------- None Alien Tech Used ----------------- None Achievements -------------- None Challenges ------------ None Game ------ Seed ZioniteChargeDetector Manual? 0 Play Time 00:16:50 Cumulative 146.0 hours Start 2025.12.03 @ 01:23:49 End 2025.12.03 @ 01:38:40 Sessions 1 Manual Loads 0 Difficulty Rogue Special Mode None Game No. 80 Rogue 80 Adventurer 0 Explorer 0 Win Type - Total 1 Types 1/0/0/0/0/0/0/0/0/0 Lore% 66 Gallery% 61 Achievement% 49 Wizard Run 0 Options --------- Layout 1 ASCII 0 Keyboard 0 Movement Mouse Keybinds 0 Fullscreen 2 Font 32/SmallcapsGlow Map View 50x35 Zoom Use 0% Tactical HUD 1 Map Filters NONE Filters NONE Steam 1 RUN: 8759f6e8-38a3-47dd-9841-663454931608